Cogmind - Beta 12 @@@ ROGUE MODE // 2023.12.06 @ 19:43:05 Player: Mozco Result: Destroyed by G-73 Enforcer with Phase Gun Performance ------------- Evolutions (8) 4000 Regions Visited (12) 2400 Robots Destroyed (151) 755 Value Destroyed (6866) 6866 Prototype IDs (34) 680 Alien Tech Used (8) 1600 Bonus (6694) 6694 TOTAL SCORE: 22995 Bonus ------- High Alert Combat Kills 694 Entered DSFs 500 Used Core Reset Matrix 3000 Scanned by Researcher 500 Met Sigix 2000 Cogmind --------- Core Integrity 0/1450 Matter 211/300 Energy 100/100 System Corruption 9% Temperature Cool (0) Movement Core (50) Location -2/Quarantine Parts ------- > --- POWER (3) -------- (None) > --- PROPULSION (4) --- (None) > --- UTILITY (13) ----- Advanced Visual Processing Unit Enhanced Optical Array Experimental Targeting Computer Armor Integrity Analyzer Advanced System Shield > --- WEAPON (3) ------- (None) > --- INVENTORY (5) ---- Sigix Containment Pod Peak State ------------ > --- POWER ------------ Micro Antimatter Reactor Quantum Reactor Quantum Reactor > --- PROPULSION ------- Armored Medium Treads Heavy Treads Advanced Medium Treads > --- UTILITY ---------- High-capacity Storage Unit Enhanced Optical Array Improved Sensor Array Advanced Signal Interpreter Experimental Targeting Computer Core Analyzer Advanced Transmission Jammer Phase Armor Advanced Force Field Advanced System Shield Advanced Corruption Screen Advanced System Restoration Module > --- WEAPON ----------- Heavy Quantum Rifle Sigix Broadsword > --- INVENTORY -------- Improved Quantum Reactor Armored Medium Treads Improved Heavy Treads Advanced Power Amplifier Experimental Cooling System Energy Well Improved Trap Scanner Experimental ECM Suite Advanced Thermal Shield Nova Cannon Nova Cannon Enhanced Nova Cannon Enhanced Nova Cannon Core Cannon Sigix Terminator [Rating: 195] Favorites ----------- Power Micro Antimatter Reactor Engine Improved Deuterium Engine Power Core Enhanced Fission Core Reactor Micro Antimatter Reactor Propulsion Medium Treads Treads Medium Treads Leg Aluminum Leg Wheel High-density Centrium Wheel Utility High-capacity Storage Unit Device Advanced Heat Sink Storage High-capacity Storage Unit Processor Enhanced Optical Array Hackware Advanced System Shield Protection Improved Utility Shielding Artifact Phase Armor Weapon Phase Cannon Energy Gun Precision Beam Rifle Energy Cannon Phase Cannon Ballistic Gun Light Assault Rifle Launcher Shock Bomb Launcher Impact Weapon Hammer Slashing Weapon Sigix Broadsword Build | -11 -10 -10 -9 -8 -7 -7 -6 -5 -4 -3 -2 -2 ------- Run | Jun Mat Min Mat Mat Fac DSF Fac Fac Fac Res Res Qua Slots Evolved 16 | . . . 2 2 2 . 2 2 2 2 2 . Power 2 | . . . . . . . 1 . . . 1 . Propulsion 2 | . . . 1 . 1 . . . . . . . Utility 11 | . . . 1 2 1 . 1 2 2 1 1 . Weapon 1 | . . . . . . . . . . 1 . . Parts Attached 311 | 7 3 1 21 41 10 15 8 55 23 5 10 112 Power 45 | 2 . . 3 2 . 1 1 9 2 . 2 23 Engine 12 | 2 . . 3 2 . 1 . 3 . . 1 . Core 14 | . . . . . . . 1 6 2 . 1 4 Reactor 19 | . . . . . . . . . . . . 19 Propulsion 67 | 2 2 . 9 11 2 6 2 18 5 2 1 7 Treads 64 | . 2 . 9 11 2 6 2 18 5 1 1 7 Leg 2 | 2 . . . . . . . . . . . . Wheel 1 | . . . . . . . . . . 1 . . Hover . | . . . . . . . . . . . . . Flight . | . . . . . . . . . . . . . Utility 122 | 1 1 . 4 14 8 3 3 18 12 2 3 53 Device 75 | . . . 1 7 4 2 2 9 11 1 3 35 Storage 6 | 1 1 . 1 . . . . . 1 . . 2 Processor 17 | . . . 2 2 1 1 1 3 . . . 7 Hackware 6 | . . . . 1 2 . . 2 . 1 . . Protection 15 | . . . . 4 1 . . 4 . . . 6 Artifact 3 | . . . . . . . . . . . . 3 Weapon 77 | 2 . 1 5 14 . 5 2 10 4 1 4 29 Energy Gun 15 | 1 . . 5 6 . 1 . . . . . 2 Energy Cannon 40 | . . . . 5 . 2 2 8 4 1 4 14 Ballistic Gun 3 | 1 . 1 . . . . . . . . . 1 Ballistic Cannon . | . . . . . . . . . . . . . Launcher 9 | . . . . 2 . 2 . 2 . . . 3 Special Weapon . | . . . . . . . . . . . . . Impact Weapon 2 | . . . . 1 . . . . . . . 1 Slashing Weapon 8 | . . . . . . . . . . . . 8 Piercing Weapon . | . . . . . . . . . . . . . Special Melee Weapon . | . . . . . . . . . . . . . Unidentified Prototypes 33 | . . . 4 4 . . 1 1 1 1 . 21 Corrupted Parts 4 | . . . 1 2 . . . 1 . . . . System Corruption 9 | . . . 1 6 . . . 2 . . . . Parts Lost 74 | . . . 1 9 . 3 1 12 6 . 4 38 Power 15 | . . . . 2 . . . 3 . . 1 9 Propulsion 19 | . . . . 6 . 2 . 4 1 . . 6 Utility 26 | . . . . . . 1 1 3 3 . 2 16 Weapon 14 | . . . 1 1 . . . 2 2 . 1 7 Highest Loss Streak 21 | . . . 1 5 . 2 1 4 3 . 4 21 To Critical Strikes 3 | . . . . . . . . 1 1 . . 1 Average Slot Usage (%) 94 | . 97 100 98 98 100 96 99 96 95 92 86 85 Engine 4 | . 14 14 11 8 7 7 6 3 . . . . Core 3 | . . . . . . . 6 5 9 9 10 1 Reactor 2 | . . . . . . . . . . . . 10 Treads 21 | . 21 28 32 26 30 29 26 22 17 14 11 11 Device 14 | . . . . 9 15 4 12 14 26 28 25 20 Storage 7 | . 25 28 11 9 7 7 6 5 8 4 4 5 Processor 17 | . . . 21 14 15 29 26 25 15 14 13 16 Hackware 2 | . . . . 2 3 . . . 5 7 8 4 Protection 3 | . . . . 9 2 1 . 4 . . . 3 Energy Gun 4 | . 14 8 18 8 15 7 . . . . . 1 Energy Cannon 6 | . . . . 6 . 6 13 10 9 12 13 5 Ballistic Gun 1 | . 14 19 2 . . . . . . . . . Naked Turns . | . . . . . . . . . . . . . Heaviest Build 167 | 13 23 23 55 68 63 67 76 93 110 111 157 167 Greatest Support 145 | 20 40 40 66 66 86 112 100 112 132 132 145 145 Greatest Overweight (x) 11 | . 1 . . 1 . . . 1 . 1 1 11 Average Overweight (x) . | . . . . . . . . . . . . . Largest Inventory Capacity 20 | 8 10 10 20 20 20 20 20 20 20 20 20 20 Average Capacity 18 | 6 9 10 14 20 20 20 20 20 20 20 20 19 Most Carried 20 | 6 10 10 20 20 20 20 20 20 20 20 20 20 Average Carried 16 | 3 8 9 11 18 19 19 19 17 18 19 18 18 Final Capacity 20 | 8 10 10 20 20 20 20 20 20 20 20 20 5 Final Carried 20 | 6 10 10 20 20 20 20 20 17 20 20 20 2 Class Distribution -------------------- 36% | Scavenger-Mutant 23% | Mutant 19% | Scavenger-Skirmisher 9% | Scavenger-Assassin 6% | Scavenger-Gunner 3% | Skirmisher Dominant Class ---------------- Mutant | -10/Materials Mutant | -10/Mines Scavenger-Mutant | -9/Materials Mutant | -8/Materials Skirmisher | -7/Factory Scavenger-Mutant | -7/DSF Scavenger-Skirmisher | -6/Factory Scavenger-Mutant | -5/Factory Scavenger-Mutant | -4/Factory Scavenger-Skirmisher | -3/Research Scavenger-Skirmisher | -2/Research Scavenger-Assassin | -2/Quarantine Resources | -11 -10 -10 -9 -8 -7 -7 -6 -5 -4 -3 -2 -2 ----------- Run | Jun Mat Min Mat Mat Fac DSF Fac Fac Fac Res Res Qua Matter Collected 3304 | 246 68 30 179 468 61 201 124 466 226 . 197 1038 Remotely . | . . . . . . . . . . . . . Salvage Created 7852 | . 196 142 737 1249 61 428 383 1741 573 . 276 2066 Parts 381 | . 14 7 48 40 3 21 11 80 28 . 4 125 Haulers Intercepted 12 | . 1 . 3 4 . . 1 3 . . . . Recyclers Shooed 7 | . . . 1 1 . . . 3 2 . . . Parts Field Recycled . | . . . . . . . . . . . . . Retrieved Matter . | . . . . . . . . . . . . . Parts Self-Destructed . | . . . . . . . . . . . . . Prevented . | . . . . . . . . . . . . . Kills | -11 -10 -10 -9 -8 -7 -7 -6 -5 -4 -3 -2 -2 ------- Run | Jun Mat Min Mat Mat Fac DSF Fac Fac Fac Res Res Qua Combat Hostiles Destroyed 99 | . 3 5 11 14 . 9 1 19 9 . 2 26 Melee 7 | . . . . . . . . . . . . 7 Guns 27 | . 2 4 11 3 . 3 . . . . . 4 Cannons 40 | . . . . 7 . . 1 13 4 . 2 13 AOE 15 | . 1 1 . 1 . 6 . 3 3 . . . Classes Destroyed 21 | . 3 1 3 1 . 4 1 3 1 . . 4 Worker 17 | . . . 3 2 . . . 7 . . . 5 Builder 4 | . . . . 1 . . . 2 . . . 1 Hauler 12 | . 1 . 3 4 . . 1 3 . . . . Recycler 7 | . . . 1 2 1 . 1 1 . . 1 . Mechanic 1 | . . . . . . . 1 . . . . . Operator 1 | . . . . . . . . 1 . . . . Watcher 8 | . 1 . 2 3 . . 1 1 . . . . Swarmer 3 | . . 3 . . . . . . . . . . Saboteur 1 | . . . . . . . . . . . . 1 Grunt 41 | . 3 2 9 11 . 3 . 5 4 . . 4 Brawler 2 | . . . . . . . . 2 . . . . Duelist 3 | . . . . . . 1 . 1 . . . 1 Researcher 2 | . . . . . . . . . . . . 2 Sentry 6 | . . . 2 3 . . . 1 . . . . Specialist 3 | . . . . . . 3 . . . . . . Hunter 18 | . . . . . . 1 1 6 2 . 2 6 Programmer 16 | . . . . . . . . 4 1 . . 11 Heavy 1 | . . . . . . 1 . . . . . . Q-Series 2 | . . . . . . . . . . . . 2 Behemoth 2 | . . . . . . . . . 2 . . . Alpha 7 1 | . . . . . . . . . . . . 1 Best Kill Streak 6 | . 2 3 3 3 1 4 1 6 3 . 2 4 Combat Bots Only 4 | . 2 3 2 2 . 4 1 4 3 . 2 4 Max Kills in Single Turn 4 | . 1 1 1 1 1 3 1 4 2 . 1 2 Gunslinging . | . . . . . . . . . . . . . Exploded 3 | . 1 1 . 1 . 3 . 2 2 . . . Melee 1 | . . . . . . . . . . . . 1 Uniques/NPCs Destroyed . | . . . . . . . . . . . . . Combat | -11 -10 -10 -9 -8 -7 -7 -6 -5 -4 -3 -2 -2 -------- Run | Jun Mat Min Mat Mat Fac DSF Fac Fac Fac Res Res Qua Damage Taken 18805 | . 66 199 348 1851 . 819 419 3016 1595 . 758 9734 Core 2354 | . 12 68 67 135 . 264 52 381 122 . 24 1229 Absorbed by Shields 1231 | . . . . 40 . 4 . 84 322 . . 781 Redirected to Core 336 | . . . . . . . . . . . . 336 Redirected to Shielding 154 | . . . . . . . . 114 . . . 40 Regen/Repaired (Parts) 2216 | . . . 24 . . . . 871 . . 130 1191 Core Remaining (%) 81 | 100 . 68 83 75 . 62 93 61 89 100 . . Volleys Fired 370 | . 17 20 47 69 1 20 11 68 31 . 11 75 Largest 3 | . 2 2 2 2 2 2 2 2 2 . 3 3 Hottest 353 | . 60 60 121 136 122 122 170 196 203 . 275 353 Shots Fired 693 | . 34 40 89 118 3 38 22 125 53 . 27 144 Gun 261 | . 34 40 89 36 3 34 . . . . . 25 Cannon 421 | . . . . 79 . . 22 122 53 . 27 118 Launcher 11 | . . . . 3 . 4 . 3 . . . 1 Special . | . . . . . . . . . . . . . Kinetic 64 | . 17 23 13 . . . . . . . . 11 Thermal 575 | . . . 76 105 3 34 22 122 53 . 27 133 Explosive 4 | . . . . . . 4 . . . . . . Electromagnetic 50 | . 17 17 . 13 . . . 3 . . . . Robot Hit Streak 37 | . 3 5 20 12 7 37 5 15 10 . 6 35 Robot Miss Streak 5 | . 3 4 2 4 . 1 2 2 2 . 5 4 Penetration Max 1 | . . . . . . . . . . . . 1 Secondary Targets 2 | . . . 2 . . . . . . . . . Max Gunslinging Chain 1 | . . . 1 . . . . . . . . . Shots Hit Robots 510 | . 18 27 63 100 1 34 14 78 35 . 11 129 Core Hits 241 | . 9 11 28 39 1 20 8 45 16 . 8 56 Critical Kills 9 | . . . . 1 . . . 2 1 . . 5 Critical Parts Destroyed 11 | . . . . 4 . . . . . . . 7 Critical Strikes 31 | . . . 2 8 . 1 . 2 1 . . 17 Burn 4 | . . . 2 1 . 1 . . . . . . Meltdown 6 | . . . . 1 . . . 2 1 . . 2 Destroy 11 | . . . . . . . . . . . . 11 Smash 6 | . . . . 6 . . . . . . . . Sever 4 | . . . . . . . . . . . . 4 Melee Attacks 74 | . . . . 23 . . . . . . . 51 Impact 23 | . . . . 23 . . . . . . . . Slashing 51 | . . . . . . . . . . . . 51 Piercing . | . . . . . . . . . . . . . Sneak Attacks 4 | . . . . 1 . . . . . . . 3 Combat Hostiles . | . . . . . . . . . . . . . Follow-up Attacks . | . . . . . . . . . . . . . Damage Inflicted 19647 | . 323 303 1030 2334 17 1464 453 3700 1927 . 384 7712 Guns 3298 | . 217 245 1028 490 17 518 . . . . . 783 Cannons 9962 | . . . . 1145 . . 453 2838 1269 . 384 3873 Explosions 2986 | . 106 55 . 161 . 946 . 838 658 . . 222 Melee 3341 | . . . . 510 . . . . . . . 2831 Ramming 60 | . . 3 2 28 . . . 24 . . . 3 Kinetic 623 | . 102 123 69 . . . . . . . . 329 Thermal 13568 | . 106 55 959 1422 17 518 453 3178 1927 . 384 4549 Explosive 1222 | . . . . . . 946 . 276 . . . . Electromagnetic 833 | . 115 122 . 374 . . . 222 . . . . Impact 510 | . . . . 510 . . . . . . . . Slashing 2831 | . . . . . . . . . . . . 2831 Piercing . | . . . . . . . . . . . . . Highest Corruption 10 | . . . 1 6 2 . . 3 . . . 10 Average Corruption 3 | . . . 1 5 1 . . 1 . . . 5 Corruption Purged 12 | . . . . . 2 . . . . . . 10 Corruption Blocked 10 | . . . . . . . . 8 . . . 2 Effects 65 | . . . . . 1 . . 11 . . . 53 Message Errors 18 | . . . . . . . . 3 . . . 15 Matter Fused 18 | . . . . . . . . 5 . . . 13 Heat Flow Errors 9 | . . . . . . . . . . . . 9 Energy Discharges 4 | . . . . . . . . . . . . 4 Parts Rejected 3 | . . . . . . . . . . . . 3 Data Loss (minor) 8 | . . . . . . . . 1 . . . 7 Data Loss (major) 2 | . . . . . . . . . . . . 2 Misfires 2 | . . . . . 1 . . 1 . . . . Alerts 1 | . . . . . . . . 1 . . . . Overload Shots . | . . . . . . . . . . . . . Overflow Damage 1055 | . 10 . . 109 . 22 15 76 96 . . 727 Projectiles 352 | . . . . 3 . . 15 44 27 . . 263 Explosions 133 | . 10 . . . . 22 . 32 69 . . . Melee 570 | . . . . 106 . . . . . . . 464 Knockbacks 4 | . . . . 4 . . . . . . . . Impact 4 | . . . . 4 . . . . . . . . Kinetic . | . . . . . . . . . . . . . Secondary . | . . . . . . . . . . . . . Self-Inflicted Damage 496 | . . 22 . . . . . 230 244 . . . Shots 10 | . . 1 . . . . . 5 4 . . . Rammed 11 | . . 1 . 5 . . . 5 . . . . Targets Rammed 14 | . . 1 1 5 . . . 6 . . . 1 Kicked . | . . . . . . . . . . . . . Crushed 3 | . . . 1 . . . . 1 . . . 1 Highest Temperature 414 | . 64 76 288 414 36 9 84 218 259 . 345 306 Average Temperature 78 | . 26 36 85 98 21 5 34 66 81 . 141 80 Received Heat Transfer 2375 | . 36 54 168 1139 . 27 108 241 100 . . 502 Effects 12 | . . . . 11 . . . . . . 1 . Shutdowns 1 | . . . . 1 . . . . . . . . Energy Bleed 1 | . . . . 1 . . . . . . . . Interference 5 | . . . . 5 . . . . . . . . Matter Decay 2 | . . . . 1 . . . . . . 1 . Damage (major) 3 | . . . . 3 . . . . . . . . Siege Activations . | . . . . . . . . . . . . . Robots Corrupted . | . . . . . . . . . . . . . Combat Hostiles . | . . . . . . . . . . . . . Parts Fried 5 | . . . . 4 . . . 1 . . . . Impact Corruptions 6 | . . . . 6 . . . . . . . . Robots Melted 10 | . . . . 1 . . . 5 2 . . 2 Combat Hostiles 7 | . . . . . . . . 3 2 . . 2 Parts Melted 30 | . . . 2 7 . . 1 13 3 . . 4 Heat Transferred 16106 | . 150 50 2294 2701 37 1184 555 3744 2001 . 444 2946 Parts Sabotaged 6 | . . . . . . . . 4 . . . 2 Parts Stolen . | . . . . . . . . . . . . . Parts Stripped . | . . . . . . . . . . . . . Power Chain Reactions 4 | . 2 1 . . . . . 1 . . . . Missiles Intercepted . | . . . . . . . . . . . . . Alert | -11 -10 -10 -9 -8 -7 -7 -6 -5 -4 -3 -2 -2 ------- Run | Jun Mat Min Mat Mat Fac DSF Fac Fac Fac Res Res Qua Peak Influence 775 | . 131 173 239 373 158 226 276 706 588 299 207 775 Initial 315 | . . 51 . 49 119 . 118 135 315 299 168 3 Average 300 | . 56 102 101 232 95 152 189 591 452 299 148 322 Maximum Alert Level 3 | . . . 1 1 . 1 1 3 2 1 1 3 Low Security (%) 41 | 100 100 100 98 21 100 46 56 1 . . 64 40 Level 1 25 | . . . 1 78 . 53 43 2 52 100 35 12 Level 2 31 | . . . . . . . . 88 47 . . 46 Level 3 1 | . . . . . . . . 7 . . . . Level 4 . | . . . . . . . . . . . . . Level 5 . | . . . . . . . . . . . . . High Security . | . . . . . . . . . . . . . Max Security . | . . . . . . . . . . . . . Sterilizations 1 | . . . . . . 1 . . . . . . Squads Dispatched 27 | . 3 . 2 1 . 2 3 4 2 . 1 9 Investigation 8 | . 1 . 2 . . . 1 1 1 . . 2 Extermination 8 | . . . . . . . . 1 1 . 1 5 Reinforcement 9 | . 2 . . 1 . 2 2 1 . . . 1 Assault 2 | . . . . . . . . 1 . . . 1 Garrison . | . . . . . . . . . . . . . Intercept . | . . . . . . . . . . . . . Searches Triggered . | . . . . . . . . . . . . . Construction Impeded . | . . . . . . . . . . . . . Haulers Reinforced 1 | . . . . . . . . 1 . . . . Active Scanning Responses . | . . . . . . . . . . . . . Cargo Convoy Interrupts . | . . . . . . . . . . . . . Stealth | -11 -10 -10 -9 -8 -7 -7 -6 -5 -4 -3 -2 -2 --------- Run | Jun Mat Min Mat Mat Fac DSF Fac Fac Fac Res Res Qua Distress Signals 8 | . . . 2 4 . . . 2 . . . . Communications Jammed 73 | . . . . . . . . 14 1 . . 58 Distress Signals 73 | . . . . . . . . 14 1 . . 58 Times Spotted 174 | . 6 5 15 35 . 9 7 37 11 . 2 47 Peak Tracking Total 6 | . 3 3 4 5 . 4 3 6 2 . 2 6 Tactical Retreats 9 | . . . . 7 . . . 1 . . . 1 Traps | -11 -10 -10 -9 -8 -7 -7 -6 -5 -4 -3 -2 -2 ------- Run | Jun Mat Min Mat Mat Fac DSF Fac Fac Fac Res Res Qua Traps Triggered 3 | . 1 . . . 1 . . 1 . . . . Indirectly . | . . . . . . . . . . . . . Trap Hack Attempts . | . . . . . . . . . . . . . Triggered . | . . . . . . . . . . . . . Disarmed . | . . . . . . . . . . . . . Reprogrammed . | . . . . . . . . . . . . . Reused . | . . . . . . . . . . . . . Traps Extracted . | . . . . . . . . . . . . . Installed . | . . . . . . . . . . . . . Triggered . | . . . . . . . . . . . . . Machines | -11 -10 -10 -9 -8 -7 -7 -6 -5 -4 -3 -2 -2 ---------- Run | Jun Mat Min Mat Mat Fac DSF Fac Fac Fac Res Res Qua Machines Disabled 32 | . . . 2 3 . . . 7 9 . 1 10 Max in Single Turn 4 | . . . 1 1 . . . 3 4 . 1 1 Garrison Access 3 | . . . . . . . 1 1 . . . 1 Machines Repaired . | . . . . . . . . . . . . . Machines Sabotaged . | . . . . . . . . . . . . . Overloaded Fab Kills . | . . . . . . . . . . . . . Hacking | -11 -10 -10 -9 -8 -7 -7 -6 -5 -4 -3 -2 -2 --------- Run | Jun Mat Min Mat Mat Fac DSF Fac Fac Fac Res Res Qua Machines Accessed 45 | . 1 . 4 4 5 . 5 7 3 . 1 15 Terminals 26 | . 1 . 1 3 4 . 3 2 2 . . 10 Fabricators 2 | . . . . . . . . 1 1 . . . Repair Stations 9 | . . . 2 . 1 . . 3 . . 1 2 Recycling Units 1 | . . . . . . . 1 . . . . . Scanalyzers 4 | . . . 1 1 . . . . . . . 2 Garrison Access 3 | . . . . . . . 1 1 . . . 1 Total Hacks 124 | . 2 . 13 20 11 . 9 27 7 . 6 29 Successful 80 | . 1 . 9 15 7 . 4 18 2 . 3 21 Failed 44 | . 1 . 4 5 4 . 5 9 5 . 3 8 Catastrophic 9 | . . . . . 1 . 2 2 2 . . 2 Database Lockouts . | . . . . . . . . . . . . . Manual 26 | . . . 1 4 4 . 7 1 1 . . 8 Terminals 52 | . 2 . 3 8 9 . 5 3 5 . . 17 Fabricators 4 | . . . . . . . . 2 2 . . . Repair Stations 38 | . . . 6 . 2 . . 21 . . 6 3 Recycling Units 1 | . . . . . . . 1 . . . . . Scanalyzers 22 | . . . 4 12 . . . . . . . 6 Garrison Access 7 | . . . . . . . 3 1 . . . 3 Terminal Hacks 21 | . 1 . 2 3 3 . 1 1 . . . 10 Record 6 | . . . . . . . . . . . . 6 Robot Analysis 3 | . . . 1 1 . . . 1 . . . . Prototype ID Bank 1 | . . . 1 . . . . . . . . . Open Door 2 | . . . . . . . . . . . . 2 Open DSF 1 | . . . . . 1 . . . . . . . Unreport Threat 1 | . . . . . 1 . . . . . . . Locate Traps 2 | . . . . 1 . . . . . . . 1 Zone Layout 5 | . 1 . . 1 1 . 1 . . . . 1 Fabricator Hacks 3 | . . . . . . . . 2 1 . . . Load Schematic 2 | . . . . . . . . 1 1 . . . Build 1 | . . . . . . . . 1 . . . . Repair Station Hacks 25 | . . . 4 . 2 . . 14 . . 3 2 Scan Component 14 | . . . 2 . 1 . . 8 . . 2 1 Repair 11 | . . . 2 . 1 . . 6 . . 1 1 Recycling Unit Hacks 1 | . . . . . . . 1 . . . . . Retrieve Matter 1 | . . . . . . . 1 . . . . . Scanalyzer 20 | . . . 3 11 . . . . . . . 6 Insert Component 9 | . . . 1 5 . . . . . . . 3 Analyze 11 | . . . 2 6 . . . . . . . 3 Garrison Access Hacks . | . . . . . . . . . . . . . Unauthorized Hacks 10 | . . . . 1 2 . 2 1 1 . . 3 Terminals 7 | . . . . 1 2 . 1 . 1 . . 2 Assimilate 1 | . . . . . . . 1 . . . . . Botnet 6 | . . . . 1 2 . . . 1 . . 2 Fabricators . | . . . . . . . . . . . . . Repair Stations . | . . . . . . . . . . . . . Recycling Units . | . . . . . . . . . . . . . Scanalyzers . | . . . . . . . . . . . . . Garrison Access 3 | . . . . . . . 1 1 . . . 1 Jam 3 | . . . . . . . 1 1 . . . 1 Data Cores Recovered . | . . . . . . . . . . . . . Used . | . . . . . . . . . . . . . Hacking Detections 34 | . 1 . 4 4 5 . 3 5 3 . 1 8 Full Trace Events 4 | . . . 2 . . . . . 1 . . 1 Feedback Events . | . . . . . . . . . . . . . Feedback Blocked . | . . . . . . . . . . . . . Robot Schematics Acquired 1 | . . . . . . . . . . . . 1 Robots Built . | . . . . . . . . . . . . . Authchips . | . . . . . . . . . . . . . Time . | . . . . . . . . . . . . . Total Robot Build Rating . | . . . . . . . . . . . . . Part Schematics Acquired 18 | . . . 1 5 . . . . . . . 12 Parts Built . | . . . . . . . . . . . . . Authchips 1 | . . . . . . . . 1 . . . . Time 73 | . . . . . . . . 73 . . . . Total Part Build Rating . | . . . . . . . . . . . . . Parts Repaired 11 | . . . 2 . 1 . . 6 . . 1 1 Time 622 | . . . 180 . 26 . . 311 . . 62 43 Parts Recycled . | . . . . . . . . . . . . . Recycled Matter . | . . . . . . . . . . . . . Retrieved Matter . | . . . . . . . . . . . . . Retrieved Components . | . . . . . . . . . . . . . Parts Scanalyzed 9 | . . . 1 5 . . . . . . . 3 Part Schematics Acquired 9 | . . . 1 5 . . . . . . . 3 Parts Damaged 2 | . . . 1 . . . . . . . . 1 Bothacking | -11 -10 -10 -9 -8 -7 -7 -6 -5 -4 -3 -2 -2 ------------ Run | Jun Mat Min Mat Mat Fac DSF Fac Fac Fac Res Res Qua Used RIF Installer . | . . . . . . . . . . . . . Robots Hacked . | . . . . . . . . . . . . . Non-combat . | . . . . . . . . . . . . . Combat . | . . . . . . . . . . . . . Robot Hacks Applied . | . . . . . . . . . . . . . Relay Couplers Released . | . . . . . . . . . . . . . Fabnet Peak Effective % . | . . . . . . . . . . . . . Robots Rewired . | . . . . . . . . . . . . . Allies Hacked . | . . . . . . . . . . . . . Hacks Repelled . | . . . . . . . . . . . . . Allies | -11 -10 -10 -9 -8 -7 -7 -6 -5 -4 -3 -2 -2 -------- Run | Jun Mat Min Mat Mat Fac DSF Fac Fac Fac Res Res Qua Total Allies . | . . . . . . . . . . . . . Largest Group . | . . . . . . . . . . . . . Highest-Rated Group . | . . . . . . . . . . . . . Highest-Rated Ally . | . . . . . . . . . . . . . Total Orders . | . . . . . . . . . . . . . Ally Attacks . | . . . . . . . . . . . . . Total Damage . | . . . . . . . . . . . . . Kills . | . . . . . . . . . . . . . Allies Corrupted . | . . . . . . . . . . . . . Allies Melted . | . . . . . . . . . . . . . Intel | -11 -10 -10 -9 -8 -7 -7 -6 -5 -4 -3 -2 -2 ------- Run | Jun Mat Min Mat Mat Fac DSF Fac Fac Fac Res Res Qua Robot Analysis Total 3 | . . . 1 1 . . . 1 . . . . Derelict Logs Recovered . | . . . . . . . . . . . . . Drone Launches . | . . . . . . . . . . . . . Drone Recoveries . | . . . . . . . . . . . . . Exploration | -11 -10 -10 -9 -8 -7 -7 -6 -5 -4 -3 -2 -2 ------------- Run | Jun Mat Min Mat Mat Fac DSF Fac Fac Fac Res Res Qua Turns Passed 10642 | 70 225 434 965 1363 411 256 750 1908 688 233 504 2835 Spaces Moved 4757 | 47 110 232 435 448 252 107 408 885 342 140 232 1119 Core 2 | 1 . . . . . . . . . . . 1 Treads 4680 | . 81 232 435 448 252 107 408 885 342 140 232 1118 Legs 75 | 46 29 . . . . . . . . . . . Wheels . | . . . . . . . . . . . . . Hover . | . . . . . . . . . . . . . Flight . | . . . . . . . . . . . . . Fastest Speed 50 | 50 120 160 145 145 148 148 152 152 158 158 158 158 Average Speed 170 | 118 151 160 159 192 151 153 152 159 160 158 186 193 Slowest Speed 600 | 120 190 160 160 240 152 160 152 235 162 245 240 600 Overloaded Moves . | . . . . . . . . . . . . . Propulsion Burnouts . | . . . . . . . . . . . . . Robots Hopped . | . . . . . . . . . . . . . Cave-ins Triggered . | . . . . . . . . . . . . . Exploration Rate (%) 32 | 3 27 58 37 50 6 94 13 26 12 5 6 82 Regions Visited 12 Branch Regions 2 Pre-discovered Areas . | . . . . . . . . . . . . . Known Exits Taken 7 | . . . . 1 1 . 1 1 1 1 1 . Unknown Exits Taken 4 | 1 1 1 1 . . . . . . . . . Scrap Searched 1 | . . 1 . . . . . . . . . . Spaces Dug 2 | . . . . . . . . . . . . 2 Terrain Destroyed 1225 | . 5 2 . . . 31 5 88 82 . 5 1007 Melee 2 | . . . . . . . . . . . . 2 Projectile 110 | . . . . . . . 5 28 12 . 5 60 AOE 1113 | . 5 2 . . . 31 . 60 70 . . 945 Terrain Rammed . | . . . . . . . . . . . . . Walls Destroyed . | . . . . . . . . . . . . . Machines Disabled . | . . . . . . . . . . . . . Actions | -11 -10 -10 -9 -8 -7 -7 -6 -5 -4 -3 -2 -2 --------- Run | Jun Mat Min Mat Mat Fac DSF Fac Fac Fac Res Res Qua Total 6481 | 58 139 259 621 779 280 162 517 1247 429 150 285 1555 Wait 656 | . . 4 87 162 5 . 78 206 16 4 19 75 Move 4745 | 46 109 231 434 447 251 106 407 884 341 139 231 1119 Hop . | . . . . . . . . . . . . . Pick Up 127 | 5 7 1 13 15 7 8 7 15 6 . 7 36 Fast Attach 118 | 6 1 . 8 8 2 4 2 10 6 3 2 66 Attach 96 | . 2 1 3 13 3 3 3 17 10 1 5 35 Detach 20 | . . . 1 3 . 1 . . 3 . 1 11 Swap 100 | 1 . . 11 20 5 8 3 28 7 1 3 13 Drop 161 | . 3 1 16 14 6 12 6 13 9 2 6 73 Fire 370 | . 17 20 47 69 1 20 11 68 31 . 11 75 Melee 74 | . . . . 23 . . . . . . . 51 Ram . | . . . . . . . . . . . . . Kick . | . . . . . . . . . . . . . Crush 14 | . . 1 1 5 . . . 6 . . . 1 Escape Stasis . | . . . . . . . . . . . . . Rewire . | . . . . . . . . . . . . . Trap . | . . . . . . . . . . . . . Miscellaneous . | . . . . . . . . . . . . . Route ------- -11/Junkyard -10/Materials -10/Mines -9/Materials -8/Materials -7/Factory -7/DSF -6/Factory -5/Factory -4/Factory -3/Research -2/Research -2/Quarantine (discovered 1 exit: [*Acc]) History --------- Turn | Location | Event 22 | -11/Junkyard | Discovered new exit (range 13) 71 | -11/Junkyard | Entered Materials 220 | -10/Materials | Discovered new exit (range 15) 296 | -10/Materials | Entered Mines 301 | -10/Mines | Build established: Mutant 558 | -10/Mines | Found a damaged Exp. Sensor Array with a note attached 564 | -10/Mines | Found Prototype Device 712 | -10/Mines | Discovered new exit (range 5) 730 | -10/Mines | Entered Materials 730 | -9/Materials | Evolved 2 slots: Propulsion x1, Utility x1 731 | -9/Materials | Identified Exp. Sensor Array 789 | -9/Materials | Repaired Corrupted Visual Processing Unit 1242 | -9/Materials | Build established: Scavenger-Mutant 1242 | -9/Materials | Discovered new exit (range 10) 1540 | -9/Materials | Repaired Broken Exp. Sensor Array? 1695 | -9/Materials | Entered another Materials area 1695 | -8/Materials | Evolved 2 slots: Utility x2 1879 | -8/Materials | Lost 3 parts (1p2n) 1922 | -8/Materials | Build established: Mutant 2265 | -8/Materials | Build established: Scavenger-Mutant 2280 | -8/Materials | Lost 5 parts (1p4n) 2724 | -8/Materials | Build established: Mutant 3034 | -8/Materials | Discovered new exit (range 11) 3057 | -8/Materials | Identified exit to Factory 3058 | -8/Materials | Entered Factory 3058 | -7/Factory | Evolved 2 slots: Propulsion x1, Utility x1 3348 | -7/Factory | Repaired Broken Adv. Treads 3432 | -7/Factory | Identified exit to DSF 3469 | -7/Factory | Entered DSF 3507 | -7/DSF | Additional patrols routed to DSF 3638 | -7/DSF | Sterilization system engaged 3658 | -7/DSF | Ambient heat levels rising (+10) 3673 | -7/DSF | Ambient heat levels rising (+10) 3688 | -7/DSF | Ambient heat levels rising (+10) 3703 | -7/DSF | Ambient heat levels rising (+10) 3704 | -7/DSF | Discovered new exit (range 14) 3718 | -7/DSF | Ambient heat levels rising (+10) 3723 | -7/DSF | Identified exit to Factory 3725 | -7/DSF | Entered Factory 3725 | -6/Factory | Evolved 2 slots: Power x1, Utility x1 4021 | -6/Factory | Build established: Scavenger-Skirmisher 4443 | -6/Factory | Discovered new exit (range 20) 4473 | -6/Factory | Identified exit to Factory 4475 | -6/Factory | Entered another Factory area 4475 | -5/Factory | Evolved 2 slots: Utility x2 4553 | -5/Factory | Build established: Scavenger-Mutant 5330 | -5/Factory | Repaired Med. Treads 5383 | -5/Factory | Repaired Phase Cannon 5675 | -5/Factory | First assault squad dispatched 5800 | -5/Factory | Lost 4 parts (1p2u1w) 6036 | -5/Factory | Repaired Arm. Medium Treads? 6042 | -5/Factory | Build established: Mutant 6131 | -5/Factory | Repaired Arm. Medium Treads? 6254 | -5/Factory | Repaired Broken Med. Treads 6304 | -5/Factory | Repaired Med. Treads 6351 | -5/Factory | Discovered new exit (range 8) 6378 | -5/Factory | Identified exit to Factory 6383 | -5/Factory | Entered another Factory area 6383 | -4/Factory | Evolved 2 slots: Utility x2 6399 | -4/Factory | Spotted B-86 Titan 6428 | -4/Factory | Destroyed B-86 Titan 6442 | -4/Factory | Found Hvy. Reflective Plating 6602 | -4/Factory | Build established: Scavenger-Mutant 6605 | -4/Factory | Spotted B-86 Titan 6795 | -4/Factory | Destroyed B-86 Titan 6831 | -4/Factory | Lost 3 parts (2u1w) 7041 | -4/Factory | Discovered new exit (range 6) 7054 | -4/Factory | Identified exit to Research 7071 | -4/Factory | Entered Research 7071 | -3/Research | Evolved 2 slots: Utility x1, Weapon x1 7177 | -3/Research | Discovered new exit (range 13) 7202 | -3/Research | Identified exit to Research 7304 | -3/Research | Entered another Research area 7304 | -2/Research | Evolved 2 slots: Power x1, Utility x1 7426 | -2/Research | Build established: Scavenger-Skirmisher 7554 | -2/Research | Lost 4 parts (1p2u1w) 7568 | -2/Research | Discovered new exit (range 4) 7576 | -2/Research | Identified exit to Quarantine 7608 | -2/Research | Repaired Matter Neutralizer? 7808 | -2/Research | Entered Quarantine 7825 | -2/Quarantine | Scanned by Researcher 7855 | -2/Quarantine | Found Alien Slashing Weapon 7855 | -2/Quarantine | Identified Sigix Broadsword 8325 | -2/Quarantine | Found Alien Reactor 8325 | -2/Quarantine | Identified Matter Drive 8460 | -2/Quarantine | Spotted Alpha 7 8517 | -2/Quarantine | Destroyed Alpha 7 8535 | -2/Quarantine | Found Prototype Device 8535 | -2/Quarantine | Identified Exp. ECM Suite 8577 | -2/Quarantine | Found Prototype Processor 8577 | -2/Quarantine | Identified Exp. Targeting Computer 8604 | -2/Quarantine | Found Alien Launcher 8604 | -2/Quarantine | Identified Sigix Terminator 8753 | -2/Quarantine | Repaired Broken Imp. Heavy Treads? 8781 | -2/Quarantine | Build established: Scavenger-Assassin 8866 | -2/Quarantine | Found Alien Impact Weapon 8866 | -2/Quarantine | Identified Core Stripper 9099 | -2/Quarantine | Found Alien Artifact 9099 | -2/Quarantine | Identified Terrabomb 9099 | -2/Quarantine | Used Terrabomb 9183 | -2/Quarantine | Found Alien Artifact 9183 | -2/Quarantine | Identified Phase Armor 9399 | -2/Quarantine | Found Alien Energy Cannon 9399 | -2/Quarantine | Identified Core Cannon 9553 | -2/Quarantine | Lost 6 parts (1p1n3u1w) 9626 | -2/Quarantine | Found Alien Artifact 9626 | -2/Quarantine | Identified Core Reset Matrix 9626 | -2/Quarantine | Used Core Reset Matrix 9630 | -2/Quarantine | Detected hypermatrix surge 9630 | -2/Quarantine | Sensed 12 artifacts in vicinity 9656 | -2/Quarantine | Met incapacitated Sigix Warrior 9656 | -2/Quarantine | Lockdown squad dispatched 9662 | -2/Quarantine | Acquired the access code to the Sigix quarantine chamber 9665 | -2/Quarantine | Unlocked Sigix quarantine chamber 9727 | -2/Quarantine | Core integrity fell below 50% 9742 | -2/Quarantine | System corruption reached 10% 9772 | -2/Quarantine | Lost 3 parts (1p1n1w) 10192 | -2/Quarantine | Found Unknown Protection 10192 | -2/Quarantine | Identified Hvy. Reflective Plating 10198 | -2/Quarantine | Lost 6 parts (1p2u3w) 10248 | -2/Quarantine | Found Prototype Ballistic Gun 10249 | -2/Quarantine | Identified Multirail 10331 | -2/Quarantine | Discovered new exit (range 3) 10445 | -2/Quarantine | Build established: Scavenger-Gunner 10554 | -2/Quarantine | Spotted Fortress 10558 | -2/Quarantine | First assault squad dispatched 10610 | -2/Quarantine | Core integrity fell below 20% 10628 | -2/Quarantine | Fired Sigix Terminator 10643 | -2/Quarantine | Destroyed by G-73 Enforcer with Phase Gun Last Messages --------------- 10626_ Dropped Core Cannon. 10628_ U-05 Engineer builds a Wall. 10628_ Sigix Terminator expended. 10629_ Adv. Cooling System destroyed. 10630_ Acquired Core Cannon. 10631_ Beam penetrates Fortress. 10631_ Fortress suffers critical hit (Destroy). 10631_ Destroyed Prototype Treads. 10631_ Beam penetrates Fortress. 10632_ Arm. Medium Treads destroyed. 10635_ Exp. Energy Well destroyed. 10635_ Critical hit (Blast). 10636_ Acquired Adv. Phase Shifter. 10639_ System corrupted: Matter fused (-10). 10640_ Core Cannon destroyed. 10640_ Adv. Phase Shifter destroyed. 10641_ Mic. Antimatter Reactor destroyed. 10641_ Lgt. Quantum Reactor destroyed. 10641_ Knocked back. 10642_ Acquired 20 matter. Map ----- +----------------------------------------------------+ | ???????????????????????????????????????????????? | | ???????????????????????????????????????????????? | | ???????????????????????????????????????????????? | | ???????????????????????????????????????????????? | | ##+#???????????????????????????????????????????? | | #???????????????????????????????????????????? | | +???????????????????????????????????????????? | | #???????????????????????????????????????????? | | #???????????????????????????????????????????? | | " #???????????????????????????????????????????? | | " = ######??????????????????????????????????????? | | " #??????????????????????????????????????? | | #??????????????????????????????????????? | | " #???????????????????????????????? ?????? | | " ###????????????????????????????? ?????? | | " T"#???????????????????????????? ????? | | ""#??????????????????????????? ????? | | " ###????????????????????????? ???? | | " #?????????????????????????? ???? | | " #????????????????????????? ??? | | #???????????????????????? ??? | | #??????????????????????? ??? | | ###### #??????????????????##?? ?? | | #????# #???##################;;;;;;;;;;;;;;;"?? | | #??# # ##### % % ? | | #????# "%+ u %@*] ? | | #????# "+ g ! ! / = | | #?? # + g !% / ! u | | #????# + %=!% FFF | | ####?####+##### u !]% % FFF | | #?" ###########;########;;; ;FFF """?? | | #?# #?????????##????????? #? | | #?# " #????????????????????? ; " ??? | | ####?# "" #?????????????????????? ; ??? | | #????# "" #??????????????????????? ; ??? | | #????# "" #????????????????????????" "???? | | #????# " #?????????????????????????"";;;"""???? | | ###### "" #?????????????????????????? ????? | | ## "" #??????????????????????????? ????? | | "" ## ?" #????????????????????????????? ?????? | | "" ## ?? #?????????????????????????????? ?????? | | "" ## ?? #????????????????????????????????????? | | "" ## ?? #????????????????????????????????????? | | #####???#????????????????????????????????????? | | "" #????????????????????????????????????????????? | | "" #????????????????????????????????????????????? | | "" #????????????????????????????????????????????? | | ""? #????????????????????????????????????????????? | | ?????????????????????????????????????????????????? | | ?????????????????????????????????????????????????? | +----------------------------------------------------+ Best States ------------- Heat Dissipation 143 Energy Generation 80 Energy Capacity 1090 Matter Stores 300 Matter Capacity 300 Sight Range 22 Robot Scan Range 20 Terrain Scan Density 10 ECM Strength 3 Jamming Range 16 Power Amplification 30 EM Shielding 4 Corruption Block 18 Armor Coverage 825 Resistance: TH 30 Propulsion Shielding 33 Utility Shielding 66 Phase Shifting 15 Evasion (%) 55 Targeting Accuracy 12 Core Analysis 6 Armor Integrity Analysis 30 Recoil Reduction 4 Particle Charging 15 Offensive Hacking 10 Defensive Hacking 24 Authchip Count 1 Item Schematics ----------------- None Robot Schematics ------------------ None Fabricated ------------ Nothing Alien Tech Used ----------------- Sigix Broadsword Matter Drive Sigix Terminator Core Stripper Terrabomb Phase Armor Core Cannon Core Reset Matrix Achievements -------------- None Challenges ------------ None Game ------ Seed ThiefAdvancedReconfigurator Manual? 0 Play Time 02:13:37 Cumulative 127.3 hours Start 2023.12.06 @ 16:03:45 End 2023.12.06 @ 19:43:05 Sessions 1 Manual Loads 0 Difficulty Rogue Special Mode None Game No. 99 Rogue 96 Adventurer 3 Explorer 0 Win Type - Total 1 Types 1/0/0/0/0/0/0/0/0 Lore% 67 Gallery% 73 Achievement% 55 Wizard Run 0 Options --------- ASCII 0 Keyboard 0 Movement Mouse Keybinds 0 Fullscreen 2 Font 18/SmallcapsGlow Map View 76x50 Tactical HUD 1 Map Filters NONE Filters NONE Steam 1 RUN: 5db57ba3-a128-4773-a50c-ee3afc38173b